[Event "*** SCC Grand Prix: Titled Tuesday Blitz"]
[Site "Chess.com"]
[Date "2020.06.23"]
[Round "4"]
[White "doctorcristian"]
[Black "queen_iryna"]
[Result "1-0"]
[WhiteElo "2432"]
[BlackElo "2248"]
[TimeControl "180+1"]
[EndTime "10:39:36 PDT"]
[Termination "doctorcristian won by resignation"]

1. d4 {[%clk 0:03:00.9]} 1... d5 {[%clk 0:03:00]} 2. Bf4 {[%clk 0:02:57.7]} 2...
Nf6 {[%clk 0:02:59.9]} 3. Nc3 {[%clk 0:02:57.1]} 3... c6 {[%clk 0:02:55.5]} 4.
e3 {[%clk 0:02:56.4]} 4... Bf5 {[%clk 0:02:55.4]} 5. f3 {[%clk 0:02:56.1]} 5...
Qb6 {[%clk 0:02:49.3]} 6. Na4 {[%clk 0:02:51.4]} 6... Qa5+ {[%clk 0:02:46.4]} 7.
c3 {[%clk 0:02:51.7]} 7... e6 {[%clk 0:02:39.6]} 8. g4 {[%clk 0:02:50]} 8... Bg6
{[%clk 0:02:39.4]} 9. h4 {[%clk 0:02:49.8]} 9... h6 {[%clk 0:02:34.8]} 10. h5
{[%clk 0:02:47.1]} 10... Bh7 {[%clk 0:02:34.9]} 11. b4 {[%clk 0:02:46.1]} 11...
Qd8 {[%clk 0:02:32.9]} 12. Nh3 {[%clk 0:02:41.4]} 12... Bd6 {[%clk 0:02:27.5]}
13. Be2 {[%clk 0:02:36.8]} 13... Bxf4 {[%clk 0:02:20.6]} 14. Nxf4 {[%clk
0:02:32.9]} 14... Nbd7 {[%clk 0:02:21.5]} 15. O-O {[%clk 0:02:19.6]} 15... e5
{[%clk 0:02:14.6]} 16. Ng2 {[%clk 0:02:14.2]} 16... O-O {[%clk 0:02:09.8]} 17.
Nc5 {[%clk 0:02:10.9]} 17... Nxc5 {[%clk 0:02:02.8]} 18. bxc5 {[%clk 0:02:10.8]}
18... Re8 {[%clk 0:01:54]} 19. Re1 {[%clk 0:02:03.6]} 19... Nd7 {[%clk
0:01:41.9]} 20. Bd3 {[%clk 0:01:44.1]} 20... e4 {[%clk 0:01:37.9]} 21. Be2
{[%clk 0:01:31.7]} 21... exf3 {[%clk 0:01:35.4]} 22. Bxf3 {[%clk 0:01:29.5]}
22... Be4 {[%clk 0:01:35.8]} 23. Bxe4 {[%clk 0:01:19.2]} 23... Rxe4 {[%clk
0:01:36.7]} 24. Rf1 {[%clk 0:01:19.6]} 24... Qg5 {[%clk 0:01:23.1]} 25. Rf4
{[%clk 0:01:16.9]} 25... Rae8 {[%clk 0:01:07.1]} 26. Qf3 {[%clk 0:01:14.4]}
26... Qe7 {[%clk 0:00:52.2]} 27. Rf1 {[%clk 0:01:12.8]} 27... Nf6 {[%clk
0:00:51.4]} 28. Kh2 {[%clk 0:00:49.3]} 28... Qe6 {[%clk 0:00:50.5]} 29. Kg3
{[%clk 0:00:47.6]} 29... Qe7 {[%clk 0:00:43.4]} 30. Rxf6 {[%clk 0:00:42.6]}
30... gxf6 {[%clk 0:00:39.7]} 31. Qxf6 {[%clk 0:00:42.5]} 31... Qxf6 {[%clk
0:00:39.4]} 32. Rxf6 {[%clk 0:00:42.6]} 32... Kg7 {[%clk 0:00:39.3]} 33. Rf2
{[%clk 0:00:40.9]} 33... b6 {[%clk 0:00:39.4]} 34. cxb6 {[%clk 0:00:38.9]} 34...
axb6 {[%clk 0:00:40.3]} 35. Rb2 {[%clk 0:00:38.4]} 35... b5 {[%clk 0:00:40.4]}
36. Kf3 {[%clk 0:00:36.9]} 36... Ra8 {[%clk 0:00:38.8]} 37. Nf4 {[%clk
0:00:36.4]} 37... Re7 {[%clk 0:00:36.1]} 38. Nd3 {[%clk 0:00:35.8]} 38... Rea7
{[%clk 0:00:35.3]} 39. Nb4 {[%clk 0:00:35.8]} 39... Ra3 {[%clk 0:00:33]} 40. Rc2
{[%clk 0:00:35]} 40... Rc8 {[%clk 0:00:31.4]} 41. Nd3 {[%clk 0:00:30.2]} 41...
Kf6 {[%clk 0:00:27]} 42. Ne5 {[%clk 0:00:26]} 42... Rca8 {[%clk 0:00:25.3]} 43.
Nxc6 {[%clk 0:00:24.8]} 43... Rxa2 {[%clk 0:00:25.5]} 44. Rxa2 {[%clk
0:00:22.2]} 44... Rxa2 {[%clk 0:00:26.4]} 45. Nb4 {[%clk 0:00:22.7]} 45... Ra3
{[%clk 0:00:23.7]} 46. Nxd5+ {[%clk 0:00:22.9]} 46... Ke6 {[%clk 0:00:21.7]} 47.
Nc7+ {[%clk 0:00:22.8]} 47... Kd6 {[%clk 0:00:19.2]} 48. Nxb5+ {[%clk
0:00:23.7]} 1-0

[Event "*** SCC Grand Prix: Titled Tuesday Blitz"]
[Site "Chess.com"]
[Date "2020.06.23"]
[Round "4"]
[White "DonBroca"]
[Black "Irochka83"]
[Result "0-1"]
[WhiteElo "2134"]
[BlackElo "2384"]
[TimeControl "180+1"]
[EndTime "10:39:36 PDT"]
[Termination "Irochka83 won by checkmate"]

1. d4 {[%clk 0:02:46.6]} 1... c5 {[%clk 0:02:57.3]} 2. d5 {[%clk 0:02:44.8]}
2... e5 {[%clk 0:02:56.2]} 3. c4 {[%clk 0:02:42.8]} 3... d6 {[%clk 0:02:56]} 4.
e4 {[%clk 0:02:38.1]} 4... Be7 {[%clk 0:02:56]} 5. Nc3 {[%clk 0:02:38]} 5... Bg5
{[%clk 0:02:55.2]} 6. Nf3 {[%clk 0:02:36.2]} 6... Bxc1 {[%clk 0:02:54.8]} 7.
Qxc1 {[%clk 0:02:37.1]} 7... Ne7 {[%clk 0:02:55.1]} 8. Bd3 {[%clk 0:02:36.5]}
8... O-O {[%clk 0:02:55.5]} 9. O-O {[%clk 0:02:36.3]} 9... f5 {[%clk 0:02:55]}
10. exf5 {[%clk 0:02:29.8]} 10... Bxf5 {[%clk 0:02:53]} 11. Bxf5 {[%clk
0:02:28.1]} 11... Nxf5 {[%clk 0:02:52.7]} 12. Ne4 {[%clk 0:02:21.8]} 12... h6
{[%clk 0:02:51.9]} 13. a3 {[%clk 0:02:07]} 13... Nd7 {[%clk 0:02:52]} 14. g4
{[%clk 0:01:52.4]} 14... Nh4 {[%clk 0:02:39.9]} 15. Nxh4 {[%clk 0:01:41.9]}
15... Qxh4 {[%clk 0:02:40.8]} 16. f3 {[%clk 0:01:42.3]} 16... Nf6 {[%clk
0:02:22.7]} 17. Nxd6 {[%clk 0:01:17.4]} 17... e4 {[%clk 0:01:33.2]} 18. Nf5
{[%clk 0:01:10.2]} 18... Qh3 {[%clk 0:01:28]} 19. Qe3 {[%clk 0:00:49.7]} 19...
exf3 {[%clk 0:01:12.9]} 20. Qxf3 {[%clk 0:00:48.1]} 20... Qxf3 {[%clk
0:01:07.2]} 21. Rxf3 {[%clk 0:00:47.1]} 21... Nxg4 {[%clk 0:01:07.9]} 22. Raf1
{[%clk 0:00:44.3]} 22... Kh7 {[%clk 0:01:06.8]} 23. d6 {[%clk 0:00:40.3]} 23...
Rad8 {[%clk 0:00:59.3]} 24. Kg2 {[%clk 0:00:25.8]} 24... Rxf5 {[%clk 0:00:33.6]}
25. Rxf5 {[%clk 0:00:25.6]} 25... Ne3+ {[%clk 0:00:34.1]} 26. Kg3 {[%clk
0:00:21.4]} 26... Nxf1+ {[%clk 0:00:32]} 27. Rxf1 {[%clk 0:00:22.3]} 27... Rxd6
{[%clk 0:00:32.2]} 28. Rf5 {[%clk 0:00:20.4]} 28... Rb6 {[%clk 0:00:27.3]} 29.
Rf2 {[%clk 0:00:18.7]} 29... Rb3+ {[%clk 0:00:27.4]} 30. Kg2 {[%clk 0:00:18.8]}
30... a5 {[%clk 0:00:25.8]} 31. Rc2 {[%clk 0:00:16.4]} 31... Kg6 {[%clk
0:00:25.3]} 32. Kf2 {[%clk 0:00:15.1]} 32... Kf5 {[%clk 0:00:24.4]} 33. Ke2
{[%clk 0:00:14.8]} 33... g5 {[%clk 0:00:23.3]} 34. Kf2 {[%clk 0:00:14.4]} 34...
Kg4 {[%clk 0:00:21.9]} 35. Kg2 {[%clk 0:00:14.5]} 35... h5 {[%clk 0:00:21.7]}
36. Kg1 {[%clk 0:00:14]} 36... Kh3 {[%clk 0:00:20.4]} 37. Kh1 {[%clk 0:00:09.4]}
37... g4 {[%clk 0:00:20.5]} 38. Kg1 {[%clk 0:00:09.3]} 38... h4 {[%clk
0:00:21.1]} 39. Kh1 {[%clk 0:00:09.5]} 39... g3 {[%clk 0:00:22]} 40. hxg3 {[%clk
0:00:08.9]} 40... hxg3 {[%clk 0:00:22.9]} 41. Kg1 {[%clk 0:00:09.3]} 41... Rd3
{[%clk 0:00:22.5]} 42. Rc1 {[%clk 0:00:06.6]} 42... Rd2 {[%clk 0:00:22.6]} 43.
b4 {[%clk 0:00:06.5]} 43... axb4 {[%clk 0:00:22.1]} 44. axb4 {[%clk 0:00:07.4]}
44... cxb4 {[%clk 0:00:22.9]} 45. c5 {[%clk 0:00:07.5]} 45... b3 {[%clk
0:00:23.2]} 46. c6 {[%clk 0:00:08]} 46... bxc6 {[%clk 0:00:23.5]} 47. Rxc6
{[%clk 0:00:08.1]} 47... Rd1# {[%clk 0:00:23.7]} 0-1

[Event "*** SCC Grand Prix: Titled Tuesday Blitz"]
[Site "Chess.com"]
[Date "2020.06.23"]
[Round "4"]
[White "A-Fier"]
[Black "kirillshevchenko"]
[Result "1-0"]
[WhiteElo "2761"]
[BlackElo "2917"]
[TimeControl "180+1"]
[EndTime "10:39:38 PDT"]
[Termination "A-Fier won by resignation"]

1. d4 {[%clk 0:03:00.9]} 1... f5 {[%clk 0:02:57.9]} 2. Nc3 {[%clk 0:02:58.8]}
2... Nf6 {[%clk 0:02:55.2]} 3. Bg5 {[%clk 0:02:57.3]} 3... d5 {[%clk 0:02:53.1]}
4. e3 {[%clk 0:02:54]} 4... e6 {[%clk 0:02:47.3]} 5. Nf3 {[%clk 0:02:53.3]} 5...
c6 {[%clk 0:02:44.9]} 6. Bd3 {[%clk 0:02:53.7]} 6... Bd6 {[%clk 0:02:44.8]} 7.
O-O {[%clk 0:02:54.1]} 7... O-O {[%clk 0:02:45.1]} 8. Ne2 {[%clk 0:02:54.1]}
8... Bd7 {[%clk 0:02:33.2]} 9. c4 {[%clk 0:02:54]} 9... h6 {[%clk 0:02:27.7]}
10. Bf4 {[%clk 0:02:53.9]} 10... Be8 {[%clk 0:02:27.9]} 11. Bxd6 {[%clk
0:02:53.1]} 11... Qxd6 {[%clk 0:02:28.8]} 12. Ne5 {[%clk 0:02:53.4]} 12... Nbd7
{[%clk 0:02:24.6]} 13. cxd5 {[%clk 0:02:39.2]} 13... exd5 {[%clk 0:02:15]} 14.
f4 {[%clk 0:02:27.8]} 14... Ne4 {[%clk 0:02:13.1]} 15. Nc3 {[%clk 0:02:21.6]}
15... Ndf6 {[%clk 0:02:00.9]} 16. Nxe4 {[%clk 0:02:13.6]} 16... fxe4 {[%clk
0:01:51.4]} 17. Be2 {[%clk 0:02:13.7]} 17... a5 {[%clk 0:01:29.1]} 18. Rc1
{[%clk 0:02:12.2]} 18... Bd7 {[%clk 0:01:22.6]} 19. Qc2 {[%clk 0:02:07.1]} 19...
Rfc8 {[%clk 0:01:04.9]} 20. Qc5 {[%clk 0:02:06.7]} 20... Qxc5 {[%clk 0:01:00.9]}
21. Rxc5 {[%clk 0:02:07.6]} 21... b6 {[%clk 0:00:53]} 22. Rc3 {[%clk 0:02:07]}
22... c5 {[%clk 0:00:53.3]} 23. Rfc1 {[%clk 0:01:40.6]} 23... c4 {[%clk
0:00:46.6]} 24. Nxd7 {[%clk 0:01:40.2]} 24... Nxd7 {[%clk 0:00:46.5]} 25. Bg4
{[%clk 0:01:40.9]} 25... Nf6 {[%clk 0:00:30.6]} 26. Bxc8 {[%clk 0:01:40.7]}
26... Rxc8 {[%clk 0:00:31.5]} 27. a4 {[%clk 0:01:39.8]} 27... Ne8 {[%clk
0:00:31.7]} 28. b3 {[%clk 0:01:35]} 28... Nd6 {[%clk 0:00:32.1]} 29. bxc4 {[%clk
0:01:35.6]} 29... Nxc4 {[%clk 0:00:32]} 30. Rb1 {[%clk 0:01:34]} 30... Kf7
{[%clk 0:00:31.4]} 31. Rb5 {[%clk 0:01:32.2]} 31... Ke6 {[%clk 0:00:31.6]} 32.
g4 {[%clk 0:01:32.7]} 32... Kd6 {[%clk 0:00:30.7]} 33. Kf2 {[%clk 0:01:32.4]}
33... Kc6 {[%clk 0:00:29.9]} 34. h4 {[%clk 0:01:28.2]} 34... g6 {[%clk
0:00:29.8]} 35. Kg3 {[%clk 0:01:28.1]} 35... Rf8 {[%clk 0:00:29.6]} 36. Rb1
{[%clk 0:01:20.7]} 36... Rf7 {[%clk 0:00:29.6]} 37. Rf1 {[%clk 0:01:16]} 37...
b5 {[%clk 0:00:29.4]} 38. axb5+ {[%clk 0:01:16.9]} 38... Kxb5 {[%clk 0:00:30.3]}
39. Rb1+ {[%clk 0:01:11.6]} 39... Kc6 {[%clk 0:00:30]} 40. Rb8 {[%clk
0:01:02.6]} 40... Ra7 {[%clk 0:00:29]} 41. Rc8+ {[%clk 0:00:49.3]} 41... Kb5
{[%clk 0:00:28]} 42. Rb3+ {[%clk 0:00:49.9]} 42... Ka4 {[%clk 0:00:26.1]} 43.
Rcb8 {[%clk 0:00:50.3]} 43... Rc7 {[%clk 0:00:19.6]} 44. f5 {[%clk 0:00:50]}
44... gxf5 {[%clk 0:00:19.2]} 45. gxf5 {[%clk 0:00:50.9]} 45... Rf7 {[%clk
0:00:14.6]} 46. Kf4 {[%clk 0:00:50.5]} 46... Nd6 {[%clk 0:00:15]} 47. Ke5 {[%clk
0:00:46.2]} 47... Nc4+ {[%clk 0:00:14.1]} 48. Kxd5 {[%clk 0:00:44.6]} 48... Nd2
{[%clk 0:00:11.7]} 49. Rb2 {[%clk 0:00:44.9]} 49... Rxf5+ {[%clk 0:00:08.3]} 50.
Ke6 {[%clk 0:00:44.2]} 1-0

[Event "*** SCC Grand Prix: Titled Tuesday Blitz"]
[Site "Chess.com"]
[Date "2020.06.23"]
[Round "4"]
[White "mamey78"]
[Black "Stronger1799"]
[Result "1-0"]
[WhiteElo "2341"]
[BlackElo "2476"]
[TimeControl "180+1"]
[EndTime "10:39:38 PDT"]
[Termination "mamey78 won by resignation"]

1. e4 {[%clk 0:03:00.9]} 1... c5 {[%clk 0:02:59.6]} 2. Nf3 {[%clk 0:03:00.3]}
2... e6 {[%clk 0:03:00.5]} 3. c3 {[%clk 0:02:59.6]} 3... d5 {[%clk 0:02:59.9]}
4. exd5 {[%clk 0:02:59.1]} 4... exd5 {[%clk 0:03:00.8]} 5. d4 {[%clk 0:02:59.1]}
5... Nc6 {[%clk 0:03:01.3]} 6. Bb5 {[%clk 0:02:58.6]} 6... Bd6 {[%clk
0:03:01.4]} 7. O-O {[%clk 0:02:58.3]} 7... Ne7 {[%clk 0:03:01.7]} 8. dxc5 {[%clk
0:02:53.5]} 8... Bxc5 {[%clk 0:03:02.6]} 9. Nbd2 {[%clk 0:02:53.4]} 9... O-O
{[%clk 0:03:02.8]} 10. Nb3 {[%clk 0:02:53.3]} 10... Bb6 {[%clk 0:03:03.4]} 11.
Bd3 {[%clk 0:02:52.6]} 11... Nf5 {[%clk 0:02:58.6]} 12. Bf4 {[%clk 0:02:48.5]}
12... Qf6 {[%clk 0:02:37]} 13. Qd2 {[%clk 0:02:31.9]} 13... Nd6 {[%clk
0:02:07.5]} 14. Ng5 {[%clk 0:01:59.5]} 14... g6 {[%clk 0:01:43.8]} 15. Rfe1
{[%clk 0:01:43.8]} 15... h6 {[%clk 0:01:37.2]} 16. Nf3 {[%clk 0:01:32.3]} 16...
Ne4 {[%clk 0:01:27.1]} 17. Bxe4 {[%clk 0:01:19.6]} 17... dxe4 {[%clk 0:01:28]}
18. Rxe4 {[%clk 0:01:19.6]} 18... Bf5 {[%clk 0:01:28.6]} 19. Ree1 {[%clk
0:01:14.6]} 19... Rad8 {[%clk 0:01:28.6]} 20. Qc1 {[%clk 0:01:11.9]} 20... g5
{[%clk 0:01:28.1]} 21. Bg3 {[%clk 0:01:10.8]} 21... Bg4 {[%clk 0:01:12.4]} 22.
Nbd2 {[%clk 0:01:08.1]} 22... Rd3 {[%clk 0:01:10.3]} 23. Ne4 {[%clk 0:01:03.4]}
23... Qg6 {[%clk 0:01:07.1]} 24. Ne5 {[%clk 0:00:45.5]} 24... Nxe5 {[%clk
0:01:00.8]} 25. Bxe5 {[%clk 0:00:46.4]} 25... f6 {[%clk 0:00:52]} 26. Bd4 {[%clk
0:00:43.3]} 26... Bxd4 {[%clk 0:00:43.5]} 27. cxd4 {[%clk 0:00:43.1]} 27... Rxd4
{[%clk 0:00:44.4]} 28. Nc5 {[%clk 0:00:37.7]} 28... Rc8 {[%clk 0:00:36.5]} 29.
Qe3 {[%clk 0:00:34.1]} 29... Rb4 {[%clk 0:00:15]} 30. b3 {[%clk 0:00:27.7]}
30... b6 {[%clk 0:00:12.1]} 31. Ne4 {[%clk 0:00:25]} 31... Rd8 {[%clk
0:00:06.5]} 32. h3 {[%clk 0:00:18.5]} 32... Bf5 {[%clk 0:00:06.1]} 33. Ng3
{[%clk 0:00:18.5]} 33... Bc8 {[%clk 0:00:04.7]} 34. Rac1 {[%clk 0:00:16.7]}
34... Rbd4 {[%clk 0:00:04.1]} 35. Rxc8 {[%clk 0:00:16]} 35... Rxc8 {[%clk
0:00:03.7]} 36. Qe6+ {[%clk 0:00:16]} 36... Qf7 {[%clk 0:00:01.6]} 37. Qxc8+
{[%clk 0:00:16.9]} 37... Kg7 {[%clk 0:00:02]} 38. Nf5+ {[%clk 0:00:16.1]} 38...
Kg6 {[%clk 0:00:02.4]} 39. Nxd4 {[%clk 0:00:17]} 1-0

[Event "*** SCC Grand Prix: Titled Tuesday Blitz"]
[Site "Chess.com"]
[Date "2020.06.23"]
[Round "4"]
[White "GianmarcoVaR"]
[Black "Ashedu66"]
[Result "0-1"]
[WhiteElo "2376"]
[BlackElo "2160"]
[TimeControl "180+1"]
[EndTime "10:39:38 PDT"]
[Termination "Ashedu66 won on time"]

1. e4 {[%clk 0:02:54.8]} 1... e5 {[%clk 0:02:59.3]} 2. Nf3 {[%clk 0:02:54.8]}
2... Nc6 {[%clk 0:02:59.3]} 3. Bb5 {[%clk 0:02:54.7]} 3... Nge7 {[%clk 0:02:59]}
4. O-O {[%clk 0:02:51.2]} 4... g6 {[%clk 0:02:58.6]} 5. c3 {[%clk 0:02:47.8]}
5... Bg7 {[%clk 0:02:57.8]} 6. d4 {[%clk 0:02:46.1]} 6... exd4 {[%clk
0:02:57.7]} 7. cxd4 {[%clk 0:02:46.6]} 7... d5 {[%clk 0:02:57.9]} 8. exd5 {[%clk
0:02:41.5]} 8... Nxd5 {[%clk 0:02:57.8]} 9. Re1+ {[%clk 0:02:40.9]} 9... Be6
{[%clk 0:02:57.7]} 10. Bg5 {[%clk 0:02:34.1]} 10... Qd6 {[%clk 0:02:56.3]} 11.
Nc3 {[%clk 0:02:33.1]} 11... O-O {[%clk 0:02:41.6]} 12. Ne4 {[%clk 0:02:32.7]}
12... Qb4 {[%clk 0:02:39.6]} 13. Bxc6 {[%clk 0:01:54.5]} 13... bxc6 {[%clk
0:02:39.3]} 14. Qd2 {[%clk 0:01:54.2]} 14... Qxd2 {[%clk 0:02:26.2]} 15. Nfxd2
{[%clk 0:01:52.4]} 15... Bxd4 {[%clk 0:02:19]} 16. Rab1 {[%clk 0:01:37.8]} 16...
Rfe8 {[%clk 0:02:09.8]} 17. h3 {[%clk 0:01:21.2]} 17... f6 {[%clk 0:01:53.3]}
18. Nf3 {[%clk 0:01:16]} 18... Bb6 {[%clk 0:01:17.3]} 19. Nxf6+ {[%clk
0:01:09.2]} 19... Nxf6 {[%clk 0:01:16.5]} 20. Bxf6 {[%clk 0:01:10.1]} 20... Kf7
{[%clk 0:01:16.7]} 21. Bd4 {[%clk 0:01:07.4]} 21... Bf5 {[%clk 0:01:06.6]} 22.
Rxe8 {[%clk 0:00:58.8]} 22... Rxe8 {[%clk 0:01:05.4]} 23. Rc1 {[%clk 0:00:59.7]}
23... Re2 {[%clk 0:00:45.4]} 24. Rxc6 {[%clk 0:00:41.4]} 24... Bd7 {[%clk
0:00:37.5]} 25. Rc1 {[%clk 0:00:21.6]} 25... c6 {[%clk 0:00:24.2]} 26. Rd1
{[%clk 0:00:15.4]} 26... Be6 {[%clk 0:00:20.5]} 27. a3 {[%clk 0:00:13.7]} 27...
Bxd4 {[%clk 0:00:18.1]} 28. Rxd4 {[%clk 0:00:13.4]} 28... Rxb2 {[%clk
0:00:18.2]} 29. Ng5+ {[%clk 0:00:13.2]} 29... Kf6 {[%clk 0:00:17]} 30. Nxh7+
{[%clk 0:00:12.4]} 30... Ke5 {[%clk 0:00:17.2]} 31. Ra4 {[%clk 0:00:12.4]} 31...
Rb7 {[%clk 0:00:14.1]} 32. Ng5 {[%clk 0:00:10.3]} 32... Bd5 {[%clk 0:00:14.2]}
33. f4+ {[%clk 0:00:06]} 33... Kd6 {[%clk 0:00:13.6]} 34. Kf2 {[%clk 0:00:04.8]}
34... c5 {[%clk 0:00:13.8]} 35. Ra6+ {[%clk 0:00:03.8]} 35... Kc7 {[%clk
0:00:13.2]} 36. Rxg6 {[%clk 0:00:02.5]} 36... c4 {[%clk 0:00:13.2]} 37. Rg7+
{[%clk 0:00:01.9]} 37... Kd6 {[%clk 0:00:12.6]} 38. Rxb7 {[%clk 0:00:01.7]}
38... Bxb7 {[%clk 0:00:12.7]} 0-1

[Event "*** SCC Grand Prix: Titled Tuesday Blitz"]
[Site "Chess.com"]
[Date "2020.06.23"]
[Round "4"]
[White "cholzan"]
[Black "Bazarov04"]
[Result "1-0"]
[WhiteElo "2345"]
[BlackElo "2496"]
[TimeControl "180+1"]
[EndTime "10:39:39 PDT"]
[Termination "cholzan won by resignation"]

1. d4 {[%clk 0:03:00.9]} 1... e6 {[%clk 0:02:59.4]} 2. c4 {[%clk 0:03:00]} 2...
f5 {[%clk 0:02:59.3]} 3. g3 {[%clk 0:02:59.6]} 3... Nf6 {[%clk 0:02:59]} 4. Bg2
{[%clk 0:02:59.9]} 4... d5 {[%clk 0:02:59.5]} 5. Nh3 {[%clk 0:02:58.3]} 5... c6
{[%clk 0:02:58.3]} 6. O-O {[%clk 0:02:58.2]} 6... Be7 {[%clk 0:02:56.8]} 7. Nd2
{[%clk 0:02:56.3]} 7... O-O {[%clk 0:02:57]} 8. Nf3 {[%clk 0:02:56.5]} 8... b6
{[%clk 0:02:57.2]} 9. Nf4 {[%clk 0:02:56.4]} 9... Ne4 {[%clk 0:02:56.4]} 10. Ne5
{[%clk 0:02:55.8]} 10... Bd6 {[%clk 0:02:55]} 11. Nfd3 {[%clk 0:02:44.5]} 11...
Bb7 {[%clk 0:02:53.8]} 12. b4 {[%clk 0:02:37.8]} 12... Qe7 {[%clk 0:02:51.9]}
13. c5 {[%clk 0:02:35.5]} 13... Bc7 {[%clk 0:02:52.2]} 14. a4 {[%clk 0:02:30.5]}
14... Nd7 {[%clk 0:02:50.5]} 15. cxb6 {[%clk 0:02:14.8]} 15... axb6 {[%clk
0:02:47.7]} 16. Ba3 {[%clk 0:02:12.2]} 16... Nxe5 {[%clk 0:02:46.8]} 17. Nxe5
{[%clk 0:02:07.5]} 17... Bxe5 {[%clk 0:02:41.3]} 18. dxe5 {[%clk 0:02:08.4]}
18... Rfd8 {[%clk 0:02:24.1]} 19. Rc1 {[%clk 0:01:51.4]} 19... d4 {[%clk
0:02:21.5]} 20. Qc2 {[%clk 0:01:00.8]} 20... Nc3 {[%clk 0:02:12.2]} 21. e3
{[%clk 0:00:43.8]} 21... Rxa4 {[%clk 0:02:11.7]} 22. Bb2 {[%clk 0:00:43.3]}
22... Qxb4 {[%clk 0:02:01.7]} 23. exd4 {[%clk 0:00:42.9]} 23... Nd5 {[%clk
0:01:59.7]} 24. Ra1 {[%clk 0:00:39.5]} 24... Rda8 {[%clk 0:01:57.9]} 25. Rxa4
{[%clk 0:00:39.2]} 25... Rxa4 {[%clk 0:01:55.1]} 26. Bxd5 {[%clk 0:00:37.9]}
26... cxd5 {[%clk 0:01:06.3]} 27. Qc7 {[%clk 0:00:38.8]} 27... Ba6 {[%clk
0:00:52.8]} 28. Rc1 {[%clk 0:00:18.2]} 28... Bc4 {[%clk 0:00:52.7]} 29. Qd7
{[%clk 0:00:15.6]} 29... Ra8 {[%clk 0:00:42.3]} 30. Qxe6+ {[%clk 0:00:15.2]}
30... Kh8 {[%clk 0:00:42.5]} 31. Bc3 {[%clk 0:00:15]} 31... Qa3 {[%clk
0:00:41.3]} 32. Bd2 {[%clk 0:00:15.1]} 32... Qf3 {[%clk 0:00:26.3]} 33. Bh6
{[%clk 0:00:10.2]} 33... Rg8 {[%clk 0:00:20.3]} 34. Ra1 {[%clk 0:00:07.5]} 34...
Qg4 {[%clk 0:00:17.4]} 35. h3 {[%clk 0:00:06.6]} 35... Qh5 {[%clk 0:00:16.8]}
36. Bxg7+ {[%clk 0:00:06]} 36... Rxg7 {[%clk 0:00:14.5]} 37. Ra8+ {[%clk
0:00:06.1]} 1-0

[Event "*** SCC Grand Prix: Titled Tuesday Blitz"]
[Site "Chess.com"]
[Date "2020.06.23"]
[Round "4"]
[White "swisspower96"]
[Black "eightbyeightchess"]
[Result "1-0"]
[WhiteElo "2616"]
[BlackElo "2403"]
[TimeControl "180+1"]
[EndTime "10:39:40 PDT"]
[Termination "swisspower96 won by resignation"]

1. d4 {[%clk 0:03:00.9]} 1... d5 {[%clk 0:02:58.4]} 2. c4 {[%clk 0:03:01]} 2...
c6 {[%clk 0:02:58.6]} 3. cxd5 {[%clk 0:03:00.2]} 3... cxd5 {[%clk 0:02:58]} 4.
Bf4 {[%clk 0:03:00.7]} 4... Nf6 {[%clk 0:02:57.8]} 5. e3 {[%clk 0:03:00.6]} 5...
Nc6 {[%clk 0:02:57.9]} 6. Nc3 {[%clk 0:03:01]} 6... e6 {[%clk 0:02:56.9]} 7. Bd3
{[%clk 0:02:57.5]} 7... Bd6 {[%clk 0:02:56.3]} 8. Bxd6 {[%clk 0:02:57.5]} 8...
Qxd6 {[%clk 0:02:57.2]} 9. f4 {[%clk 0:02:58.2]} 9... O-O {[%clk 0:02:56.7]} 10.
Nf3 {[%clk 0:02:57.5]} 10... b6 {[%clk 0:02:39.8]} 11. O-O {[%clk 0:02:55]}
11... a5 {[%clk 0:02:39.9]} 12. Nb5 {[%clk 0:02:36.5]} 12... Qe7 {[%clk
0:02:34.4]} 13. Rc1 {[%clk 0:02:21.1]} 13... Bb7 {[%clk 0:02:28.4]} 14. a3
{[%clk 0:02:17.4]} 14... Rfc8 {[%clk 0:02:26.1]} 15. Ne5 {[%clk 0:02:16.5]}
15... Nd7 {[%clk 0:01:59.9]} 16. Rf3 {[%clk 0:01:44.5]} 16... Nf8 {[%clk
0:01:44.5]} 17. Rh3 {[%clk 0:00:50]} 17... g6 {[%clk 0:01:28]} 18. Rc3 {[%clk
0:00:41.4]} 18... f6 {[%clk 0:01:23.3]} 19. Ng4 {[%clk 0:00:41]} 19... e5 {[%clk
0:01:07.4]} 20. fxe5 {[%clk 0:00:26]} 20... fxe5 {[%clk 0:01:08.3]} 21. Qf1
{[%clk 0:00:22.6]} 21... e4 {[%clk 0:00:47]} 22. Bb1 {[%clk 0:00:21.2]} 22...
Ba6 {[%clk 0:00:38.6]} 23. Ba2 {[%clk 0:00:18.7]} 23... Bxb5 {[%clk 0:00:22.2]}
24. Qxb5 {[%clk 0:00:18.5]} 24... Ne6 {[%clk 0:00:09.7]} 25. Rxc6 {[%clk
0:00:13.7]} 25... Rxc6 {[%clk 0:00:10.6]} 26. Qxc6 {[%clk 0:00:14.4]} 26... Rd8
{[%clk 0:00:10.4]} 27. Bxd5 {[%clk 0:00:13.9]} 27... Rd6 {[%clk 0:00:11]} 28.
Bxe6+ {[%clk 0:00:14.3]} 28... Qxe6 {[%clk 0:00:11.9]} 29. Qa8+ {[%clk
0:00:13.7]} 29... Kg7 {[%clk 0:00:12]} 30. Nh6 {[%clk 0:00:11.7]} 30... Rc6
{[%clk 0:00:10.8]} 31. Qb7+ {[%clk 0:00:09.2]} 31... Kf8 {[%clk 0:00:03.3]} 32.
Qb8+ {[%clk 0:00:07.1]} 32... Kg7 {[%clk 0:00:03.4]} 33. Qe5+ {[%clk 0:00:07.1]}
33... Qxe5 {[%clk 0:00:03.5]} 34. dxe5 {[%clk 0:00:08]} 34... Rc1+ {[%clk
0:00:04.1]} 35. Kf2 {[%clk 0:00:08.4]} 35... Rc2+ {[%clk 0:00:05]} 36. Kg3
{[%clk 0:00:09]} 36... Rxb2 {[%clk 0:00:05.9]} 37. Ng4 {[%clk 0:00:09.1]} 37...
Rb3 {[%clk 0:00:05.8]} 38. Kf4 {[%clk 0:00:09.4]} 38... Rxa3 {[%clk 0:00:05.9]}
39. e6 {[%clk 0:00:10.1]} 39... Kf8 {[%clk 0:00:05.9]} 40. Rxh7 {[%clk
0:00:07.5]} 40... Ra1 {[%clk 0:00:06.8]} 41. Nf6 {[%clk 0:00:08]} 1-0